Cogmind - Beta 13 @@@ ROGUE MODE // 2024.06.03 @ 17:44:09 Player: Some Pennies Result: Destroyed by as-03374 with Assembled Heavy Rifle Performance ------------- Evolutions (0) 0 Regions Visited (2) 400 Robots Destroyed (18) 90 Value Destroyed (484) 484 Prototype IDs (3) 60 Alien Tech Used (0) 0 Bonus (0) 0 TOTAL SCORE: 1034 Bonus ------- None Cogmind --------- Core Integrity 0/250 Matter 290/300 Energy 56/100 System Corruption 0% Temperature Hot (207) Movement Core (300) Ox5 Location -10/Mines Parts ------- > --- POWER (1) -------- (None) > --- PROPULSION (2) --- (None) > --- UTILITY (2) ------ Improved Heat Sink Medium Storage Unit > --- WEAPON (2) ------- Beam Rifle Beam Rifle > --- INVENTORY (10) --- ECM Suite ECM Suite ECM Suite Hacking Suite Thief Drone Bay (3/3) Heavy EM Pulse Gun Heavy EM Pulse Gun Beam Rifle Maul Peak State ------------ > --- POWER ------------ Light Ion Engine > --- PROPULSION ------- Light Treads Light Treads > --- UTILITY ---------- Medium Storage Unit Thief Drone Bay > --- WEAPON ----------- Beam Rifle Beam Rifle > --- INVENTORY -------- Improved Heat Sink ECM Suite ECM Suite ECM Suite Hacking Suite Heavy EM Pulse Gun Heavy EM Pulse Gun Beam Rifle Beam Rifle Maul [Rating: 16] Favorites ----------- Power Light Ion Engine Engine Light Ion Engine Propulsion Light Treads Treads Light Treads Wheel Wheel Utility Medium Storage Unit Device Seismic Detector Storage Medium Storage Unit Weapon Medium Laser Energy Gun Medium Laser Ballistic Gun Light Assault Rifle Build | -11 -10 -10 ------- Run | Yrd Mat Min Slots Evolved . | . . . Power . | . . . Propulsion . | . . . Utility . | . . . Weapon . | . . . Parts Attached 23 | 8 11 4 Power 2 | 1 1 . Engine 2 | 1 1 . Core . | . . . Reactor . | . . . Propulsion 6 | 2 4 . Treads 5 | 1 4 . Leg . | . . . Wheel 1 | 1 . . Hover . | . . . Flight . | . . . Utility 7 | 2 2 3 Device 5 | 1 1 3 Storage 2 | 1 1 . Processor . | . . . Hackware . | . . . Protection . | . . . Artifact . | . . . Weapon 8 | 3 4 1 Energy Gun 6 | 1 4 1 Energy Cannon . | . . . Ballistic Gun 2 | 2 . . Ballistic Cannon . | . . . Launcher . | . . . Special Weapon . | . . . Impact Weapon . | . . . Slashing Weapon . | . . . Piercing Weapon . | . . . Special Melee Weapon . | . . . Unidentified Prototypes 1 | . . 1 Parts Lost 11 | . 7 4 Power 2 | . 1 1 Propulsion 5 | . 3 2 Utility 1 | . 1 . Weapon 3 | . 2 1 Highest Loss Streak 4 | . 4 4 To Critical Strikes 1 | . 1 . Average Slot Usage (%) 90 | . 88 97 Engine 10 | . 9 13 Treads 23 | . 23 26 Wheel 1 | . 1 . Device 13 | . 13 14 Storage 14 | . 14 14 Energy Gun 19 | . 17 28 Ballistic Gun 6 | . 8 . Naked Turns . | . . . Heaviest Build 20 | 12 20 20 Greatest Support 40 | 10 40 40 Greatest Overweight (x) 2 | 1 2 . Average Overweight (x) . | . . . Largest Inventory Capacity 10 | 8 10 10 Average Capacity 9 | 7 9 10 Most Carried 10 | 5 10 10 Average Carried 5 | 2 4 9 Final Capacity 10 | 8 10 10 Final Carried 10 | 3 10 9 Class Distribution -------------------- 82% | Mutant 17% | Scavenger-Mutant Dominant Class ---------------- Mutant | -10/Materials Mutant | -10/Mines Resources | -11 -10 -10 ----------- Run | Yrd Mat Min Matter Collected 447 | 186 248 13 Remotely . | . . . Salvage Created 610 | 21 503 86 Parts 34 | 3 28 3 Haulers Intercepted 1 | . 1 . Recyclers Shooed 3 | . 3 . Parts Field Recycled . | . . . Retrieved Matter . | . . . Parts Self-Destructed . | . . . Prevented . | . . . Kills | -11 -10 -10 ------- Run | Yrd Mat Min Combat Hostiles Destroyed 14 | . 12 2 Guns 13 | . 12 1 Classes Destroyed 6 | 1 5 . Tunneler 1 | 1 . . Hauler 1 | . 1 . Operator 1 | . 1 . Watcher 1 | . 1 . Swarmer 3 | . 3 . Grunt 11 | . 9 2 Best Kill Streak 5 | 1 5 2 Combat Bots Only 5 | . 5 2 Max Kills in Single Turn 1 | 1 1 1 Gunslinging . | . . . Exploded . | . . . Melee . | . . . Uniques/NPCs Destroyed . | . . . Combat | -11 -10 -10 -------- Run | Yrd Mat Min Hostile Shots Fired 151 | . 117 34 Missed 25 | . 16 9 Damage Taken 1460 | . 1058 402 Core 259 | . 190 69 Absorbed by Shields . | . . . Core Remaining (%) 100 | 100 . . Volleys Fired 88 | 5 72 11 Largest 2 | 2 2 2 Hottest 112 | 40 90 112 Shots Fired 150 | 10 118 22 Gun 150 | 10 118 22 Cannon . | . . . Launcher . | . . . Special . | . . . Kinetic 49 | 10 39 . Thermal 101 | . 79 22 Explosive . | . . . Electromagnetic . | . . . Robot Hit Streak 11 | 2 11 4 Robot Miss Streak 3 | 3 3 2 Penetration Max . | . . . Secondary Targets 1 | . 1 . Max Gunslinging Chain 1 | . 1 . Shots Hit Robots 98 | 4 81 13 Core Hits 36 | 2 29 5 Critical Kills . | . . . Critical Parts Destroyed . | . . . Critical Strikes 5 | . 3 2 Burn 5 | . 3 2 Melee Attacks . | . . . Impact . | . . . Slashing . | . . . Piercing . | . . . Sneak Attacks . | . . . Combat Hostiles . | . . . Follow-up Attacks . | . . . Damage Inflicted 1193 | 30 959 204 Guns 1193 | 30 959 204 Cannons . | . . . Explosions . | . . . Melee . | . . . Ramming . | . . . Kinetic 254 | 30 224 . Thermal 939 | . 735 204 Explosive . | . . . Electromagnetic . | . . . Impact . | . . . Slashing . | . . . Piercing . | . . . Highest Corruption . | . . . Average Corruption . | . . . Corruption Purged . | . . . Corruption Blocked . | . . . Overload Shots . | . . . Overflow Damage . | . . . Projectiles . | . . . Explosions . | . . . Melee . | . . . Knockbacks . | . . . Impact . | . . . Kinetic . | . . . Secondary . | . . . Self-Inflicted Damage . | . . . Shots . | . . . Rammed . | . . . Targets Rammed . | . . . Kicked . | . . . Crushed . | . . . Highest Temperature 426 | . 426 226 Average Temperature 112 | . 114 103 Received Heat Transfer 750 | . 492 258 Effects 8 | . 8 . Shutdowns 1 | . 1 . Energy Bleed 4 | . 4 . Interference 1 | . 1 . Damage (major) 2 | . 2 . Siege Activations . | . . . Robots Corrupted . | . . . Combat Hostiles . | . . . Parts Fried . | . . . Impact Corruptions . | . . . Robots Melted 1 | . . 1 Combat Hostiles 1 | . . 1 Parts Melted 6 | . 6 . Heat Transferred 2890 | . 2224 666 Parts Sabotaged . | . . . Parts Stolen . | . . . Parts Stripped . | . . . Power Chain Reactions . | . . . Alert | -11 -10 -10 ------- Run | Yrd Mat Min Peak Influence 190 | 5 190 107 Initial 57 | . 3 57 Average 94 | . 102 102 Maximum Alert Level . | . . . Low Security (%) 100 | 100 100 100 Level 1 . | . . . Level 2 . | . . . Level 3 . | . . . Level 4 . | . . . Level 5 . | . . . High Security . | . . . Max Security . | . . . Squads Dispatched 1 | . 1 . Investigation . | . . . Extermination . | . . . Reinforcement 1 | . 1 . Assault . | . . . Garrison . | . . . Intercept . | . . . Searches Triggered . | . . . Construction Impeded . | . . . Haulers Reinforced . | . . . Active Scanning Responses . | . . . Cargo Convoy Interrupts . | . . . Stealth | -11 -10 -10 --------- Run | Yrd Mat Min Distress Signals 2 | . 2 . Communications Jammed . | . . . Distress Signals . | . . . Times Spotted 31 | . 19 12 Peak Tracking Total 12 | . 5 12 Tactical Retreats 2 | . 2 . Traps | -11 -10 -10 ------- Run | Yrd Mat Min Traps Triggered . | . . . Indirectly . | . . . Trap Hack Attempts . | . . . Triggered . | . . . Disarmed . | . . . Reprogrammed . | . . . Reused . | . . . Traps Extracted . | . . . Installed . | . . . Triggered . | . . . Machines | -11 -10 -10 ---------- Run | Yrd Mat Min Machines Disabled . | . . . Max in Single Turn . | . . . Machines Repaired . | . . . Machines Dismantled . | . . . Machines Sabotaged . | . . . Overloaded Fab Kills . | . . . Hacking | -11 -10 -10 --------- Run | Yrd Mat Min Machines Accessed 6 | . 5 1 Terminals 5 | . 5 . Fabricators . | . . . Repair Stations . | . . . Recycling Units . | . . . Scanalyzers . | . . . Garrison Access . | . . . Total Hacks 19 | . 18 1 Successful 11 | . 10 1 Failed 7 | . 7 . Catastrophic 1 | . 1 . Database Lockouts 1 | . 1 . Manual 6 | . 6 . Terminals 18 | . 18 . Fabricators . | . . . Repair Stations . | . . . Recycling Units . | . . . Scanalyzers . | . . . Garrison Access . | . . . Terminal Hacks 11 | . 10 1 Robot Analysis 1 | . 1 . Prototype ID Bank 1 | . 1 . Open Door 1 | . . 1 Emergency Access Points 3 | . 3 . Terminal Index 1 | . 1 . Locate Traps 2 | . 2 . Hauler Manifests 1 | . 1 . Zone Layout 1 | . 1 . Fabricator Hacks . | . . . Repair Station Hacks . | . . . Recycling Unit Hacks . | . . . Scanalyzer . | . . . Garrison Access Hacks . | . . . Unauthorized Hacks . | . . . Terminals . | . . . Fabricators . | . . . Repair Stations . | . . . Recycling Units . | . . . Scanalyzers . | . . . Garrison Access . | . . . Data Cores Recovered . | . . . Used . | . . . Hacking Detections 5 | . 5 . Full Trace Events 1 | . 1 . Feedback Events . | . . . Feedback Blocked . | . . . Robot Schematics Acquired . | . . . Robots Built . | . . . Authchips . | . . . Time . | . . . Total Robot Build Rating . | . . . Part Schematics Acquired . | . . . Parts Built . | . . . Authchips . | . . . Time . | . . . Total Part Build Rating . | . . . Parts Repaired . | . . . Time . | . . . Parts Recycled . | . . . Recycled Matter . | . . . Retrieved Matter . | . . . Retrieved Components . | . . . Parts Scanalyzed . | . . . Part Schematics Acquired . | . . . Parts Damaged . | . . . Bothacking | -11 -10 -10 ------------ Run | Yrd Mat Min Used RIF Installer . | . . . Robots Hacked . | . . . Non-combat . | . . . Combat . | . . . Robot Hacks Applied . | . . . Relay Couplers Released . | . . . Fabnet Peak Effective % . | . . . Robots Rewired . | . . . Allies Hacked . | . . . Hacks Repelled . | . . . Allies | -11 -10 -10 -------- Run | Yrd Mat Min Total Allies . | . . . Largest Group . | . . . Highest-Rated Group . | . . . Highest-Rated Ally . | . . . Total Orders . | . . . Ally Attacks . | . . . Total Damage . | . . . Kills . | . . . Allies Corrupted . | . . . Allies Melted . | . . . Intel | -11 -10 -10 ------- Run | Yrd Mat Min Robot Analysis Total 1 | . 1 . Derelict Logs Recovered 1 | . . 1 Drone Launches . | . . . Drone Recoveries . | . . . Exploration | -11 -10 -10 ------------- Run | Yrd Mat Min Turns Passed 909 | 72 660 177 Spaces Moved 417 | 44 288 85 Core 8 | 4 4 . Treads 333 | . 248 85 Legs . | . . . Wheels 76 | 40 36 . Hover . | . . . Flight . | . . . Fastest Speed 50 | 50 95 160 Average Speed 146 | 87 151 160 Slowest Speed 160 | 95 160 160 Overloaded Moves . | . . . Propulsion Burnouts . | . . . Robots Hopped . | . . . Cave-ins Triggered . | . . . Exploration Rate (%) 28 | 3 49 34 Regions Visited 2 Branch Regions 1 Pre-discovered Areas . | . . . Known Exits Taken . | . . . Unknown Exits Taken 2 | 1 1 . Scrap Searched . | . . . Spaces Dug . | . . . Terrain Destroyed . | . . . Melee . | . . . Projectile . | . . . AOE . | . . . Terrain Rammed . | . . . Walls Destroyed . | . . . Machines Disabled . | . . . Actions | -11 -10 -10 --------- Run | Yrd Mat Min Total 570 | 68 399 103 Wait 8 | . 7 1 Move 415 | 43 287 85 Hop . | . . . Pick Up 30 | 11 18 1 Fast Attach . | . . . Attach 15 | 7 7 1 Detach . | . . . Swap 8 | 1 4 3 Drop 6 | 1 4 1 Fire 88 | 5 72 11 Melee . | . . . Ram . | . . . Kick . | . . . Crush . | . . . Escape Stasis . | . . . Rewire . | . . . Trap . | . . . Miscellaneous . | . . . Route ------- -11/Scrapyard -10/Materials (discovered 2 exits: [*Mat] / *Min) -10/Mines History --------- Turn | Location | Event 11 | -11/Scrapyard | Discovered new exit (range 16) 73 | -11/Scrapyard | Entered Materials 174 | -10/Materials | Lost 4 parts (1p2n1w) 224 | -10/Materials | Central database locked down 332 | -10/Materials | Build established: Mutant 443 | -10/Materials | Core integrity fell below 50% 511 | -10/Materials | Discovered new exit (range 8) 645 | -10/Materials | Discovered new exit (range 9) 733 | -10/Materials | Entered Mines 790 | -10/Mines | Learned Materials security intel 820 | -10/Mines | Found the Drone Emporium 827 | -10/Mines | Found Prototype Device 828 | -10/Mines | Identified Thief Drone Bay 885 | -10/Mines | Assembled infested the area 904 | -10/Mines | Core integrity fell below 20% 910 | -10/Mines | Destroyed by as-03374 with Assembled Heavy Rifle Last Messages --------------- Sealed Doors opened. 00820_ AU-0O9(g): "Well that was anticlimactic. Heard you outside and thought you were from the Merchants Guild. I haven't even officially opened my Drone Emporium yet but am totally ready to tell them where they can shove that C&D." 00822_ AU-0O9(g): "I'm a fan of the free market. Free drones for all! No strings attached!" 00827_ Acquired Prototype Device. 00828_ Identified Thief Drone Bay. 00885_ ALERT: Infestation in the mines, dispatching Demolisher response squad. 00896_ T-07 Excavator destroyed. 00900_ Critical hit (Burn: +80). 00901_ Lgt. Treads destroyed. 00903_ Lgt. Ion Engine destroyed. 00903_ as-74877 suffers critical hit (Burn). 00907_ Beam Rifle destroyed. 00907_ Lgt. Treads destroyed. Map ----- +----------------------------------------------------+ | | | | | | | | | ?????????????????????????????????????????? | | ?????????????????????????????????????????? | | ?????????????????????????????????????????? | | ????????????????? ?????????????????????? | | ????????????????? ?????????????????????? | | ????????????????? ?????????????????????? | | ????????????????? ?????????????????????? | | ????????????????? #????????????????????? | | ?????????????????# ????????????????????? | | ?????????????????# ????????????????????? | | ?????????????????# ???????????#????????? | | ?????????####???## #??????????? ###?????# | | ????????## #### #???????????# #?##### | | ????????? ##??????????# #?# | | ??????????? ##?????????# #?# | | ????????????? ##????????# #?# ### | | ??????????????# #????????# #?# #?# | | ???????????????# ##???????# ### #?? | | ????????????????# ######### #?# | | ????????????????##a aaa ###### | | ????????????????##aaaa #???# | | ????????????????#@a a = ######???# | | ???????????????# a =%! ?? | | ???????????????# *| | | ???????????????## %* ############ | | ????????????????##### ! #??????????? | | ????????????????????## #?????????? | | ?????????????????????### #??????????? | | ???????????????????????## #??????????? | | ????????????????????????# ??????????? | | ???????????????????????? ?????????? | | ???????????????????????? ????????? | | ???????????????????????## ## ????????? | | ????????????????????????### #?# #???????? | | ??????????????????????????? #??# ????????? | | ??????????????????????????? #????????????? | | ??????????????????????????? ?????????????? | | ?????????????????????????????????????????? | | ?????????????????????????????????????????? | | ?????????????????????????????????????????? | | ?????????????????????????????????????????? | | ?????????????????????????????????????????? | | ?????????????????????????????????????????? | | ?????????????????????????????????????????? | | ?????????????????????????????????????????? | | ?????????????????????????????????????????? | +----------------------------------------------------+ Best States ------------- Heat Dissipation 39 Energy Generation 10 Energy Capacity 125 Matter Stores 300 Matter Capacity 300 Sight Range 16 Terrain Scan Density 10 Evasion (%) 44 Recoil Reduction 2 Item Schematics ----------------- None Robot Schematics ------------------ None Fabricated ------------ Nothing Alien Tech Used ----------------- None Achievements -------------- None Challenges ------------ None Game ------ Seed AngularThunderCharge Manual? 0 Play Time 00:09:28 Cumulative 126.4 hours Start 2024.06.03 @ 17:34:41 End 2024.06.03 @ 17:44:09 Sessions 1 Manual Loads 0 Difficulty Rogue Special Mode None Game No. 109 Rogue 104 Adventurer 5 Explorer 0 Win Type - Total 2 Types 2/0/0/0/0/0/0/0/0 Lore% 60 Gallery% 68 Achievement% 47 Wizard Run 0 Options --------- Layout 2 ASCII 0 Keyboard 0 Movement Mouse Keybinds 0 Fullscreen 2 Font 24/Smallcaps Map View 50x44 Zoom Use 0% Tactical HUD 1 Map Filters NONE Filters NONE Steam 1 RUN: 54795611-8cb8-4c5f-b2b9-cb22aa84a323